bitfinex-derivatives/quotes_ETHF0:USTF0_20241105
["timestamp","ask_amount","ask_price","bid_price","bid_amount"]
[1730845345786,0.41444,2413.0,2412.9,6.22372537]
[1730845346088,0.41444,2413.0,2412.9,5.80927537]
[1730845348484,0.41444,2413.0,2412.9,6.22372537]
[1730845348786,0.41444,2413.0,2412.9,0.4713]
[1730845348988,0.41445,2412.9,2412.8,0.4749]
[1730845350490,0.41451,2412.6,2412.5,4.1316]
[1730845350684,0.41451,2412.6,2412.5,5.75617537]
[1730845351088,0.4145,2412.7,2412.5,5.75617537]
[1730845351282,0.4145,2412.7,2412.5,4.5622]
[1730845351482,0.4145,2412.7,2412.5,4.97672]
[1730845351685,0.41451,2412.6,2412.5,4.1056]
[1730845353490,0.41451,2412.6,2412.5,0.8978]
[1730845361494,0.41456,2412.3,2412.1,6.66021196]
[1730845361693,0.41456,2412.3,2412.2,0.9132]
[1730845364098,0.41456,2412.3,2412.2,1.32778]
[1730845364394,0.41456,2412.3,2412.2,0.9132]
[1730845366596,0.41454,2412.5,2412.2,0.9132]
[1730845366896,0.41454,2412.4,2412.3,0.41454]
[1730845367097,0.41454,2412.4,2412.2,1.32776]
[1730845367297,0.41456,2412.3,2412.2,1.32776]
[1730845368701,0.41456,2412.3,2412.2,0.9132]
[1730845368903,0.41456,2412.3,2412.2,1.32778]
[1730845369407,0.41456,2412.3,2412.2,4.53558]
[1730845373408,0.41456,2412.3,2412.2,5.72987051]
[1730845375505,0.41456,2412.3,2412.2,4.121]
[1730845375813,0.41456,2412.3,2412.2,0.9132]
[1730845388811,0.41464,2411.8,2411.7,0.208]
[1730845389010,0.41463,2411.9,2411.7,1.32676]
[1730845389205,46.54493698,2412.1,2411.8,0.41463]
[1730845389520,0.41462,2412.0,2411.7,2.10639051]
[1730845389810,0.41461,2412.0,2411.8,0.41463]
[1730845390921,0.41461,2412.0,2411.7,2.52104051]
[1730845391514,0.41461,2412.0,2411.8,0.41464]
[1730845391715,2.12253698,2412.1,2412.0,0.41461]
[1730845391916,0.41456,2412.3,2412.2,0.41458]
[1730845392909,2.12253698,2412.5,2412.4,0.41454]
[1730845393115,0.41452,2412.6,2412.4,0.41454]
[1730845393116,2.53705698,2412.6,2412.4,0.41454]
[1730845393321,2.53705698,2412.6,2412.5,0.4469]
[1730845393521,2.53705698,2412.6,2412.5,0.86142]
[1730845393920,2.12253698,2412.6,2412.5,0.86142]
[1730845394121,5.74482698,2412.7,2412.6,0.41451]
[1730845394317,5.74482698,2412.7,2412.6,0.86981]
[1730845394513,5.74482698,2412.7,2412.6,1.30571]
[1730845394514,5.33033698,2412.7,2412.6,1.30571]
[1730845394726,3.2078,2412.7,2412.6,1.30571]
[1730845395021,0.41446,2412.9,2412.6,1.30571]
[1730845395022,2.12253698,2412.9,2412.8,0.41447]
[1730845395214,2.12253698,2412.9,2412.8,1.60876051]
[1730845395417,2.53697698,2413.0,2412.9,0.41445]
[1730845395611,2.53697698,2413.0,2412.9,0.4691]
[1730845396018,2.53697698,2413.0,2412.9,0.88355]
[1730845398122,2.53697698,2413.0,2412.9,0.4691]
[1730845399728,2.12253698,2413.0,2412.9,0.88355]
[1730845400025,2.12253698,2413.2,2413.1,0.41442]
[1730845400630,2.53692698,2413.3,2413.1,0.41442]
[1730845400935,2.12253698,2413.3,2413.0,0.9074]
[1730845401429,0.41442,2413.1,2413.0,4.1152]
[1730845401627,0.41442,2413.1,2413.0,4.52964]
[1730845401821,0.41442,2413.2,2413.0,4.52964]
[1730845402021,2.53695698,2413.2,2413.0,4.52964]
[1730845402322,2.12253698,2413.2,2413.0,4.1152]
[1730845402629,0.41444,2413.0,2412.9,0.4691]
[1730845403326,0.84724,2413.0,2412.9,0.4691]
[1730845403529,0.4328,2413.0,2412.7,3.2078]
[1730845403725,1.61302184,2412.9,2412.7,3.6429]
[1730845403930,1.61302184,2412.9,2412.7,4.05738]
[1730845404324,2.02749184,2412.8,2412.7,3.6429]
[1730845404826,1.61302184,2412.8,2412.7,3.6429]
[1730845405131,2.02749184,2412.8,2412.7,3.6429]
[1730845405426,0.41447,2412.8,2412.7,3.6429]
[1730845405633,0.41447,2412.8,2412.7,0.4351]
[1730845407528,2.53700698,2412.8,2412.7,0.4351]
[1730845407736,2.53700698,2412.8,2412.6,0.4522]
[1730845407737,0.41449,2412.7,2412.6,0.4522]
[1730845408935,2.53702698,2412.7,2412.6,0.4522]
[1730845409429,0.41449,2412.7,2412.6,0.4522]
[1730845411035,2.53702698,2412.7,2412.6,0.4522]
[1730845412937,0.41449,2412.7,2412.6,0.4522]
[1730845413844,3.2078,2412.8,2412.2,4.07607]
[1730845413845,5.86097123,2412.8,2412.2,4.07607]
[1730845414046,0.41454,2412.4,2412.3,0.4552]
[1730845414248,0.41454,2412.4,2412.3,0.9064]
[1730845421640,0.41454,2412.4,2411.7,3.2078]
[1730845421641,0.41458,2412.2,2412.1,0.4317]
[1730845422152,2.56477027,2412.2,2412.1,0.4317]
[1730845422351,3.01027027,2412.2,2412.1,0.4317]
[1730845423352,0.86008,2412.2,2412.1,0.4317]
[1730845424249,3.01027027,2412.2,2412.1,0.4317]
[1730845424453,0.41461,2412.0,2411.9,0.4432]
[1730845424749,0.41461,2412.0,2411.9,0.9061]
[1730845425544,0.41461,2412.0,2411.9,0.4629]
[1730845426252,0.41463,2411.9,2411.8,0.435]
[1730845432155,0.8651,2412.1,2411.8,0.435]
[1730845432359,0.41463,2411.9,2411.8,0.435]
[1730845433453,0.41459,2412.1,2411.8,0.435]
[1730845433649,0.41463,2411.9,2411.8,0.435]
[1730845433846,0.41459,2412.1,2411.9,0.41462]
[1730845434347,0.41459,2412.1,2412.0,0.4755]
[1730845434551,0.41459,2412.2,2412.0,0.4755]
[1730845434745,0.41459,2412.2,2412.1,0.4702]
[1730845434949,5.35799027,2412.3,2412.1,0.4702]
[1730845435151,5.35799027,2412.3,2412.2,0.41458]
[1730845435350,5.35799027,2412.3,2412.2,0.86318]
[1730845436452,3.2078,2412.3,2412.2,0.86318]
[1730845439353,3.2078,2412.3,2412.2,0.4486]
[1730845439556,3.62236,2412.3,2412.2,0.4486]
[1730845440259,3.2078,2412.3,2412.2,0.86318]
[1730845441763,3.62236,2412.3,2412.2,0.4486]
[1730845441964,3.2078,2412.3,2412.2,0.86318]
[1730845443464,5.35799027,2412.3,2412.2,0.86318]
[1730845446465,5.77255027,2412.3,2412.2,0.86318]
[1730845447154,5.35799027,2412.3,2412.2,0.86318]
[1730845447558,3.2078,2412.3,2412.2,0.86318]
[1730845449062,6.27553123,2412.3,2412.2,0.4486]
[1730845449862,6.27553123,2412.3,2412.2,0.86318]
[1730845450062,6.27553123,2412.3,2412.2,0.4486]
[1730845451068,3.06773123,2412.3,2412.2,0.4486]
[1730845451265,6.27553123,2412.3,2412.2,0.4486]
[1730845451469,6.27553123,2412.3,2412.2,0.86318]
[1730845452268,5.86097123,2412.3,2412.2,0.86318]
[1730845452471,3.2078,2412.3,2412.2,0.86318]
[1730845455170,0.41455,2412.4,2412.2,0.86318]
[1730845455469,0.41455,2412.4,2412.3,0.41456]
[1730845455669,3.62235,2412.4,2412.3,0.41456]
[1730845456978,0.41455,2412.4,2412.3,0.41456]
[1730845457182,3.62235,2412.4,2412.3,0.41456]
[1730845457470,3.62235,2412.4,2412.2,0.4486]
[1730845457668,6.80615548,2412.4,2412.3,0.41456]
[1730845458074,6.39160548,2412.4,2412.3,0.41456]
[1730845458278,6.80614548,2412.4,2412.3,0.41456]
[1730845458977,6.80614548,2412.4,2412.2,0.4486]
[1730845459175,6.80614548,2412.4,2412.2,0.86316]
[1730845459176,0.4718,2412.3,2412.2,0.86316]
[1730845459368,0.88636,2412.3,2412.2,0.86316]
[1730845459977,0.88636,2412.3,2412.2,0.4486]
[1730845460571,0.4718,2412.3,2412.2,0.86318]
[1730845460770,0.88636,2412.3,2412.2,0.86318]
[1730845461072,0.88636,2412.3,2412.2,0.4486]
[1730845461669,4.09416,2412.3,2412.2,0.4486]
[1730845462178,0.88636,2412.3,2412.2,0.4486]
[1730845462378,4.09416,2412.3,2412.2,0.4486]
[1730845463269,4.09416,2412.3,2412.1,0.41458]
[1730845463578,3.6796,2412.3,2412.2,0.86248]
[1730845463978,0.4718,2412.3,2412.2,0.86248]
[1730845464166,3.6796,2412.3,2412.2,0.86248]
[1730845464878,4.09416,2412.3,2412.2,0.86248]
[1730845465473,0.88636,2412.3,2412.2,0.86248]
[1730845465678,4.09416,2412.3,2412.2,0.86248]
[1730845466674,6.86340548,2412.3,2412.2,0.86248]
[1730845467374,7.27796548,2412.3,2412.2,0.86248]
[1730845469882,4.07016548,2412.3,2412.2,0.86248]
[1730845470183,7.27796548,2412.3,2412.2,0.86248]
[1730845471080,4.07016548,2412.3,2412.2,0.86248]
[1730845471287,7.27796548,2412.3,2412.2,0.86248]
[1730845472683,6.86340548,2412.3,2412.2,0.86248]
[1730845473089,7.27796548,2412.3,2412.2,0.86248]
[1730845473484,4.07016548,2412.3,2412.2,0.86248]
[1730845473685,7.27796548,2412.3,2412.2,0.86248]
[1730845474888,6.86340548,2412.3,2412.2,0.86248]
[1730845475275,7.27796548,2412.3,2412.2,0.86248]
[1730845475677,6.86340548,2412.3,2412.2,0.86248]
[1730845476382,4.07016548,2412.3,2412.2,0.86248]
[1730845476589,7.27796548,2412.3,2412.2,0.86248]
[1730845478286,6.86340548,2412.3,2412.2,0.86248]
[1730845478785,6.39160548,2412.3,2412.2,0.86248]
[1730845479585,6.39160548,2412.3,2412.2,1.30528]
[1730845479990,6.80616548,2412.3,2412.2,1.30528]
[1730845480183,3.62236,2412.3,2412.2,1.30528]
[1730845480594,3.2078,2412.3,2412.2,1.30528]
[1730845481696,3.62236,2412.3,2412.2,1.30528]
[1730845481896,0.41456,2412.3,2412.2,1.30528]
[1730845482699,3.62236,2412.3,2412.2,1.30528]
[1730845482887,3.2078,2412.3,2412.2,1.30528]
[1730845483087,4.12896972,2412.5,2412.4,0.41454]
[1730845483088,3.18380548,2412.5,2412.4,0.41454]
[1730845483298,3.18380548,2412.6,2412.5,0.41452]
[1730845483595,6.80610548,2412.7,2412.6,0.41451]
[1730845483986,6.39160548,2412.7,2412.6,0.41451]
[1730845484290,3.2078,2412.7,2412.6,0.41451]
[1730845484495,5.9022467,2412.7,2412.6,0.41451]
[1730845486992,5.36197815,2412.7,2412.6,0.41451]
[1730845487807,2.15417815,2412.7,2412.6,5.75380172]
[1730845487992,2.9024467,2413.3,2413.1,0.41442]
[1730845488192,2.6944467,2413.3,2413.2,0.4144]
[1730845488403,2.6944467,2413.4,2413.2,0.4359]
[1730845488704,0.82816,2413.5,2413.4,0.41437]
[1730845488705,3.1082467,2413.5,2413.4,0.41437]
[1730845488897,3.5225967,2413.5,2413.2,0.4359]
[1730845489101,3.1082467,2413.5,2413.4,0.41437]
[1730845489497,0.4138,2413.5,2413.4,0.41437]
[1730845496212,41.7173,2413.8,2413.7,0.41432]
[1730845496399,0.9173,2413.8,2413.7,0.41432]
[1730845498612,0.4751,2413.8,2413.7,0.41432]
[1730845499315,0.4698,2413.9,2413.8,0.4143]
[1730845499612,0.4698,2413.9,2413.8,0.8835]
[1730845499813,0.8944,2414.1,2414.0,0.41427]
[1730845500817,0.8944,2414.1,2413.7,6.54709172]
[1730845500818,0.4357,2414.1,2413.7,3.2078]
[1730845501021,0.4357,2414.1,2413.3,0.208]
[1730845501022,0.41432,2413.7,2413.5,0.41435]
[1730845501210,1.31505,2413.6,2413.3,3.62217]
[1730845501512,1.76305,2413.6,2413.4,0.41437]
[1730845502018,1.3487,2413.6,2413.4,0.41437]
[1730845502411,1.3487,2413.6,2413.5,0.41435]
[1730845502717,1.3487,2413.6,2413.4,0.41436]
[1730845502912,1.3487,2413.6,2413.3,3.2078]
[1730845503513,1.76304,2413.6,2413.3,3.2078]
[1730845503713,0.41435,2413.5,2413.3,3.2078]
[1730845505918,0.41435,2413.5,2413.2,0.4731]
[1730845506417,0.41435,2413.5,2413.2,0.8875]
[1730845507015,1.3487,2413.6,2413.2,0.4731]
[1730845507216,0.41439,2413.4,2413.2,0.4731]
[1730845507809,0.41436,2413.5,2413.2,0.4731]
[1730845508005,0.41436,2413.5,2413.2,0.88749]
[1730845508415,1.3487,2413.6,2413.2,0.88749]
[1730845508718,0.41437,2413.4,2413.2,0.88749]
[1730845509117,0.41439,2413.3,2413.2,0.4731]
[1730845509313,1.3487,2413.6,2413.2,0.4731]
[1730845510019,0.41438,2413.4,2413.2,0.4731]
[1730845510318,1.3487,2413.6,2413.1,3.62222]
[1730845510512,1.3487,2413.6,2413.1,3.2078]
[1730845510913,0.41438,2413.4,2413.2,0.4144]
[1730845512016,0.41437,2413.4,2413.2,0.4144]
[1730845514210,0.41438,2413.4,2413.2,0.41439]
[1730845514821,1.3487,2413.6,2413.2,0.41439]
[1730845515421,0.41439,2413.3,2413.2,0.41439]
[1730845519015,0.41438,2413.4,2413.2,0.41439]
[1730845519221,0.41439,2413.3,2413.2,0.41439]
[1730845519416,0.85649,2413.3,2413.2,0.41439]
[1730845520315,0.4421,2413.3,2413.2,0.41439]
[1730845520516,0.85649,2413.3,2413.2,0.41439]
[1730845524922,5.35098617,2413.8,2413.2,1.19449172]
[1730845525127,2.14318617,2413.9,2413.5,1.19449172]
[1730845525321,0.4143,2413.8,2413.6,0.84463]
[1730845525627,0.4143,2413.8,2413.7,0.4387]
[1730845526127,5.35098617,2414.1,2413.7,0.85302]
[1730845526128,0.41429,2413.9,2413.7,0.85302]
[1730845526319,5.35098617,2414.1,2413.7,0.9125]
[1730845526320,0.4143,2413.8,2413.7,0.9125]
[1730845526625,0.4683,2413.8,2413.7,1.32682]
[1730845526826,0.8826,2413.8,2413.7,0.9125]
[1730845527125,0.4683,2413.8,2413.7,1.32682]
[1730845528717,0.4683,2413.8,2413.7,0.4387]
[1730845528923,0.8826,2413.8,2413.7,0.4387]
[1730845529227,0.8826,2413.8,2413.7,0.85302]
[1730845530428,0.4683,2413.8,2413.7,0.85302]
[1730845532119,0.9048,2413.9,2413.8,0.4143]
[1730845532423,3.04798617,2413.9,2413.8,0.4143]
[1730845533224,2.14318617,2413.9,2413.8,0.4143]
[1730845535723,2.59988617,2414.0,2413.7,3.6465]
[1730845535926,2.59988617,2414.0,2413.9,0.41428]
[1730845538228,2.14318617,2414.4,2413.9,4.1424]
[1730845538429,2.14318617,2414.6,2414.3,4.40229172]
[1730845538628,3.1521467,2414.7,2414.6,0.41416]
[1730845538629,2.60088617,2414.7,2414.6,0.41416]
[1730845539127,0.4577,2414.7,2414.6,0.41416]
[1730845539425,0.4577,2414.7,2414.6,1.60865172]
[1730845540326,0.4577,2414.7,2414.6,4.81645172]
[1730845541322,0.877,2414.9,2414.6,4.40229172]
[1730845541525,1.3192,2414.9,2414.8,0.41413]
[1730845541923,0.8741,2414.9,2414.8,0.41413]
[1730845543335,0.8741,2414.9,2414.8,1.60862172]
[1730845545931,5.67848222,2415.4,2414.8,1.19449172]
[1730845546129,0.4734,2415.3,2415.2,1.60855172]
[1730845547642,0.41397,2415.8,2415.2,4.40229172]
[1730845547938,0.41397,2415.8,2415.3,1.62639172]
[1730845547939,0.4506,2415.7,2415.3,1.62639172]
[1730845548141,0.4506,2415.7,2415.6,0.41399]
[1730845548642,45.3906,2415.7,2415.6,0.41399]
[1730845549242,4.5906,2415.7,2415.6,0.41399]
[1730845549635,0.4506,2415.7,2415.6,0.41399]
[1730845550232,0.4654,2415.8,2415.5,1.19449172]
[1730845550437,0.4654,2415.8,2415.6,0.41399]
[1730845550833,0.4654,2415.8,2415.7,0.41397]
[1730845551438,1.15310823,2416.2,2416.1,0.41391]
[1730845551439,0.68470823,2416.2,2416.1,0.41391]
[1730845551637,0.4418,2416.5,2416.3,0.41386]
[1730845551940,0.9047,2416.5,2416.4,1.60834172]
[1730845552139,0.208,2417.0,2416.4,1.19449172]
[1730845552336,1.31845,2417.1,2416.6,1.19449172]
[1730845552645,1.31845,2417.1,2416.7,0.4138]
[1730845552844,0.9047,2417.1,2416.7,0.4138]
[1730845554137,1.31844,2417.1,2416.7,0.4138]
[1730845554645,0.41376,2417.0,2416.6,3.62161]
[1730845555033,0.41376,2417.0,2416.6,3.2078]
[1730845555437,0.9047,2417.1,2416.6,3.2078]
[1730845555638,1.31844,2417.1,2416.7,0.4138]
[1730845555840,1.31844,2417.1,2416.6,3.2078]
[1730845556037,1.31844,2417.1,2416.6,3.62161]
[1730845556239,0.41383,2416.6,2416.4,0.4462]
[1730845556439,0.41385,2416.4,2416.3,3.2078]
[1730845556642,0.41385,2416.4,2416.0,7.11917236]
[1730845556941,0.41385,2416.5,2416.0,7.11917236]
[1730845557251,3.4158,2416.9,2416.0,7.11917236]
[1730845557252,3.2078,2416.9,2416.2,0.41389]
[1730845557539,0.4637,2416.4,2416.2,0.41389]
[1730845557745,0.4637,2416.4,2416.1,0.4139]
[1730845558044,0.41388,2416.3,2416.0,6.70526236]
[1730845558237,0.41388,2416.3,2415.7,0.84807]
[1730845558238,0.41391,2416.1,2415.7,0.84807]
[1730845558743,0.41392,2416.1,2415.7,0.4341]
[1730845558954,41.21392,2416.0,2415.7,0.4341]
[1730845559138,41.21392,2416.0,2415.6,5.79086236]
[1730845559139,40.8,2416.0,2415.6,5.79086236]
[1730845559441,0.41396,2415.8,2415.6,5.79086236]
[1730845559646,40.8,2416.0,2415.6,5.79086236]
[1730845559647,0.41397,2415.7,2415.6,5.79086236]
[1730845561937,0.41397,2415.7,2415.6,3.2078]
[1730845562343,0.41401,2415.6,2415.3,3.01716236]
[1730845562639,0.41402,2415.5,2415.3,3.01716236]
[1730845563237,0.41403,2415.4,2415.3,3.01716236]
[1730845563440,4.1444,2415.9,2415.3,3.01716236]
[1730845563744,0.41401,2415.5,2415.3,3.01716236]
[1730845564137,4.1444,2415.9,2415.3,3.01716236]
[1730845564735,0.41401,2415.5,2415.3,3.01716236]
[1730845565532,3.2078,2415.9,2415.3,3.01716236]
[1730845565733,3.2078,2415.9,2415.3,3.43119236]
[1730845565939,0.41401,2415.5,2415.3,3.01716236]
[1730845566546,0.41403,2415.4,2415.3,3.01716236]
[1730845567643,0.414,2415.6,2415.3,3.01716236]
[1730845567846,0.4442,2415.7,2415.3,3.01716236]
[1730845568047,0.41403,2415.4,2415.3,3.01716236]
[1730845568553,0.41403,2415.4,2415.3,2.58306236]
[1730845570049,0.41402,2415.5,2415.3,2.99710236]
[1730845570446,0.41403,2415.4,2415.3,2.58306236]
[1730845571649,0.41403,2415.4,2415.3,2.99709236]
[1730845573056,0.41403,2415.4,2415.3,2.58306236]
[1730845573752,0.4721,2415.6,2415.4,0.41403]
[1730845573941,0.41401,2415.5,2415.4,0.41403]
[1730845574351,0.4721,2415.6,2415.4,0.4565]
[1730845574652,40.8,2416.0,2415.5,3.2078]
[1730845574846,0.8798,2416.1,2415.6,3.02266236]
[1730845575046,3.2078,2416.2,2415.8,3.62175]
[1730845575251,1.24267,2416.4,2415.9,0.473]
[1730845575252,0.41392,2416.1,2415.9,0.473]
[1730845575451,0.41392,2416.0,2415.9,0.473]
[1730845576450,4.24247,2416.4,2415.9,0.473]
[1730845576755,0.41392,2416.0,2415.9,0.473]
[1730845577156,0.41389,2416.3,2415.9,3.47000236]
[1730845577550,0.41389,2416.3,2415.9,3.05606236]
[1730845577854,1.3446,2416.6,2416.1,0.4139]
[1730845577855,0.41386,2416.4,2416.1,0.4139]
[1730845578050,1.3446,2416.6,2416.2,3.46213236]
[1730845578252,0.41384,2416.5,2416.2,3.46213236]
[1730845578453,0.41382,2416.6,2416.3,0.41387]
[1730845578646,0.41382,2416.6,2416.4,3.2078]
[1730845578862,0.41379,2416.8,2416.4,3.2078]
[1730845579052,41.7248,2416.9,2416.4,3.62165]
[1730845579349,0.4138,2416.8,2416.4,6.20471236]
[1730845579653,0.4138,2416.8,2416.5,0.84843]
[1730845580046,41.7248,2416.9,2416.5,0.84843]
[1730845580047,42.13858,2416.9,2416.5,0.84843]
[1730845580247,0.41379,2416.8,2416.5,0.8796]
[1730845580443,0.41379,2416.8,2416.5,1.29343]
[1730845581252,40.8,2417.0,2416.5,0.8796]
[1730845581660,0.41377,2416.9,2416.6,0.41381]
[1730845581856,0.41377,2416.9,2416.7,0.4528]
[1730845583850,0.41379,2416.8,2416.7,0.4528]
[1730845584051,41.2471,2417.2,2416.7,0.4528]
[1730845584248,0.41378,2416.9,2416.7,0.4528]
[1730845586951,41.2471,2417.2,2416.7,0.4528]
[1730845587664,0.41379,2416.8,2416.7,0.4528]
[1730845587861,41.2471,2417.2,2416.7,0.8666]
[1730845587862,0.41376,2417.0,2416.7,0.8666]
[1730845588765,0.41375,2417.1,2416.8,0.41378]
[1730845589063,0.41372,2417.2,2416.7,6.24366236]
[1730845589259,0.41372,2417.2,2416.9,0.41376]
[1730845589961,3.2078,2417.3,2416.7,6.24366236]
[1730845590160,0.41374,2417.1,2416.7,6.24366236]
[1730845590366,0.41376,2417.0,2416.8,0.41379]
[1730845590568,3.2078,2417.3,2416.7,6.24366236]
[1730845590758,0.41374,2417.1,2416.9,0.41377]
[1730845590953,3.2078,2417.3,2416.7,6.24366236]
[1730845591166,0.41372,2417.2,2417.0,0.41375]
[1730845591659,0.41374,2417.1,2416.9,0.41376]
[1730845592367,0.41372,2417.2,2417.0,0.41375]
[1730845592563,0.41373,2417.2,2417.0,0.41375]
[1730845592760,0.466,2417.4,2416.7,6.24366236]
[1730845593065,0.41374,2417.1,2416.9,0.41375]
[1730845593568,0.41373,2417.2,2417.0,0.41375]
[1730845593762,0.41374,2417.1,2416.9,0.41376]
[1730845594656,0.41369,2417.4,2417.2,0.41371]
[1730845594851,6.37880835,2417.9,2417.3,0.4137]
[1730845594852,0.84707,2417.5,2417.3,0.4137]
[1730845595458,0.4587,2417.8,2417.3,0.4137]
[1730845595664,0.8861,2417.7,2417.2,3.48076236]
[1730845595963,0.41367,2417.5,2417.3,0.41369]
[1730845596172,1.29974,2417.7,2417.5,0.41366]
[1730845596359,1.29974,2417.7,2417.4,0.41367]
[1730845596556,0.4527,2417.7,2417.5,0.41366]
[1730845596756,0.4527,2417.7,2417.6,0.41365]
[1730845596957,3.2078,2418.2,2417.3,3.2078]
[1730845597162,3.2078,2418.2,2417.9,0.4136]
[1730845597163,0.41355,2418.2,2417.9,0.4136]
[1730845597355,0.6541,2418.4,2417.9,0.4136]
[1730845597356,0.41354,2418.3,2417.9,0.41359]
[1730845597664,0.6843631,2418.4,2417.7,5.79086236]
[1730845597665,1.0978831,2418.4,2418.0,0.41357]
[1730845597873,0.85962,2418.4,2418.0,0.41357]
[1730845598062,0.4461,2418.4,2418.0,0.41357]
[1730845598263,0.41353,2418.3,2418.0,0.41357]
[1730845598571,0.41353,2418.3,2417.8,0.9141]
[1730845598761,0.41353,2418.3,2417.9,0.41358]
[1730845598961,0.4461,2418.4,2418.0,2.58306236]
[1730845599163,0.85963,2418.4,2418.0,2.99664236]
[1730845599866,0.4461,2418.4,2418.0,5.79086236]
[1730845600168,3.2078,2418.5,2418.0,6.89086236]
[1730845600363,3.2078,2418.5,2418.4,0.41351]
[1730845600779,3.2078,2418.5,2418.4,0.86851]
[1730845601063,3.2078,2418.5,2418.4,0.455]
[1730845601867,1.24149,2419.2,2418.5,0.41349]
[1730845601868,0.41345,2418.8,2418.5,0.41349]
[1730845602070,0.41345,2418.8,2418.6,2.58306236]
[1730845602571,3.44334603,2419.2,2418.6,2.58306236]
[1730845602772,4.47681603,2419.2,2418.6,2.58306236]
[1730845602970,0.41346,2418.7,2418.6,2.58306236]
[1730845603167,3.2078,2418.9,2418.4,3.48856236]
[1730845603364,0.4425,2418.8,2418.4,2.58306236]
[1730845603560,0.4425,2418.8,2418.5,0.41349]
[1730845603766,0.41346,2418.7,2418.5,0.41349]
[1730845603966,0.4425,2418.8,2418.4,3.03796236]
[1730845604168,0.41347,2418.7,2418.4,3.45147236]
[1730845604970,0.41348,2418.6,2418.4,3.45147236]
[1730845605165,0.41348,2418.6,2418.4,3.03796236]
[1730845605677,0.41348,2418.6,2418.4,3.45147236]
[1730845605972,0.8831,2418.8,2418.4,3.45147236]
[1730845606170,0.41347,2418.7,2418.4,3.45147236]
[1730845606777,0.41346,2418.8,2418.5,0.41349]
[1730845607071,0.41347,2418.7,2418.4,3.45146236]
[1730845607373,0.41347,2418.7,2418.5,0.41349]
[1730845608771,3.2078,2418.9,2418.5,0.41349]
[1730845609084,0.41344,2418.8,2418.5,0.41349]
[1730845609376,0.8805,2419.0,2418.6,0.41347]
[1730845609377,0.4391,2419.0,2418.6,0.41347]
[1730845609575,0.41344,2418.9,2418.6,0.41347]
[1730845609771,0.41345,2418.8,2418.6,0.41347]
[1730845610377,0.4391,2419.0,2418.5,0.4135]
[1730845610671,0.41343,2419.0,2418.8,0.41344]
[1730845611674,0.41342,2419.0,2418.7,0.41345]
[1730845611872,0.41342,2419.0,2418.8,0.41344]
[1730845612375,0.41345,2418.8,2418.6,2.99653236]
[1730845612675,0.8984,2419.1,2418.6,2.58306236]
[1730845612676,0.41343,2418.9,2418.6,2.58306236]
[1730845612874,0.8984,2419.1,2418.6,2.58306236]
[1730845613067,0.41342,2419.0,2418.7,0.41345]
[1730845613267,0.41342,2419.0,2418.7,0.88955]
[1730845614068,0.8984,2419.1,2418.7,0.4761]
[1730845614371,0.41342,2419.0,2418.8,0.41344]
[1730845615076,0.8984,2419.1,2418.9,2.58306236]
[1730845615281,0.8984,2419.1,2419.0,0.41341]
[1730845616170,0.41337,2419.3,2419.0,0.4476]
[1730845616364,0.41335,2419.4,2419.2,2.99643236]
[1730845616576,0.9193,2419.5,2419.2,2.58306236]
[1730845616779,0.9193,2419.5,2419.4,0.41334]
[1730845617078,1.24113,2420.0,2419.4,2.58306236]
[1730845617079,0.208,2420.0,2419.4,2.58306236]
[1730845617383,0.41324,2420.0,2419.8,2.58306236]
[1730845618375,0.4533,2420.2,2419.8,2.58306236]
[1730845618569,0.41323,2420.1,2419.8,2.58306236]
[1730845618775,0.4533,2420.2,2419.8,2.58306236]
[1730845618974,3.2078,2420.3,2419.8,2.99633236]
[1730845619276,3.2078,2420.3,2419.8,2.58306236]
[1730845619478,3.2078,2420.3,2420.1,2.99628236]
[1730845619679,3.2078,2420.3,2420.1,2.58306236]
[1730845620179,1.34998,2420.4,2420.1,2.99628236]
[1730845620568,0.41319,2420.3,2420.1,2.58306236]
[1730845620768,0.9368,2420.4,2420.1,2.58306236]
[1730845620970,0.4132,2420.3,2420.1,2.58306236]
[1730845621370,0.4132,2420.2,2420.1,2.58306236]
[1730845621675,0.41322,2420.1,2420.0,3.2078]
[1730845622175,4.54522,2420.1,2420.0,3.2078]
[1730845622375,4.1446,2420.4,2420.0,3.2078]
[1730845622574,0.41322,2420.1,2420.0,3.2078]
[1730845623081,0.41325,2420.0,2419.8,2.58306236]
[1730845623278,5.17756,2420.4,2419.8,2.58306236]
[1730845623670,3.2078,2420.4,2419.6,1.5398]
[1730845623880,0.41321,2420.2,2420.1,2.58306236]
[1730845624076,3.2078,2420.4,2420.1,2.58306236]
[1730845624378,0.4132,2420.3,2420.1,2.58306236]
[1730845624688,3.2078,2420.4,2420.1,2.58306236]
[1730845624880,0.4132,2420.2,2420.1,2.58306236]
[1730845625077,3.2078,2420.4,2419.9,2.58306236]
[1730845625376,0.41324,2420.0,2419.9,2.58306236]
[1730845625775,0.85294,2420.0,2419.9,2.58306236]
[1730845626977,4.98494,2420.0,2419.9,2.58306236]
[1730845627575,0.41329,2419.7,2419.6,2.58306236]
[1730845630775,4.1328,2419.7,2419.3,3.52066236]
[1730845631082,0.41334,2419.4,2419.3,2.58306236]
[1730845633074,0.41333,2419.5,2419.3,7.13002236]
[1730845633274,0.9263,2419.7,2419.3,3.05426236]
[1730845633579,0.41334,2419.4,2419.3,3.05426236]
[1730845635371,0.41331,2419.6,2419.4,0.41333]
[1730845635575,0.41331,2419.6,2419.3,3.46761236]
[1730845635576,0.41332,2419.6,2419.3,3.46761236]
[1730845635887,0.41333,2419.5,2419.3,3.46761236]
[1730845636181,0.41333,2419.5,2419.3,3.05426236]
[1730845636381,4.1341,2419.7,2419.3,3.05426236]
[1730845636686,0.41333,2419.5,2419.3,3.46761236]
[1730845637387,0.41334,2419.4,2419.3,3.05426236]